bitfinex-derivatives/quotes_ETHF0:USTF0_20210401
["timestamp","ask_amount","ask_price","bid_price","bid_amount"]
[1617244552795,14.15988823,1927.0,1926.9,3.14475919]
[1617244560209,14.15988823,1927.0,1926.9,11.01992118]
[1617244560407,15.25368823,1927.0,1926.9,11.01992118]
[1617244561410,14.15988823,1927.0,1926.9,3.14475919]
[1617244566713,14.15988823,1927.0,1926.9,12.22989755]
[1617244568215,14.15988823,1927.0,1926.9,3.14475919]
[1617244571819,14.15988823,1927.0,1926.9,12.22771287]
[1617244573820,14.15988823,1927.0,1926.9,3.14475919]
[1617244579729,14.15988823,1927.0,1926.9,13.44543004]
[1617244580531,14.15988823,1927.0,1926.9,3.14475919]
[1617244580933,14.15988823,1927.0,1926.9,13.44525972]
[1617244581131,14.15988823,1927.0,1926.9,3.14475919]
[1617244586142,14.15988823,1927.0,1926.9,13.43213344]
[1617244594652,15.45698823,1927.0,1926.9,13.19432425]
[1617244594853,15.45698823,1927.0,1926.9,2.90695]
[1617244595052,15.45698823,1927.0,1926.9,3.14278901]
[1617244602363,15.45698823,1927.0,1926.9,12.21471282]
[1617244602564,15.45698823,1927.0,1926.9,3.14278901]
[1617244605766,15.45698823,1927.0,1926.9,12.21460123]
[1617244606767,14.15988823,1927.0,1926.9,12.21460123]
[1617244607567,14.15988823,1927.0,1926.9,3.14278901]
[1617244608068,14.15988823,1927.0,1926.9,12.21428965]
[1617244609469,14.15988823,1927.0,1926.9,3.14278901]
[1617244609769,14.15988823,1927.0,1926.9,12.21449332]
[1617244611872,14.15988823,1927.0,1926.9,3.14278901]
[1617244619882,14.15988823,1927.0,1926.9,12.21789577]
[1617244627187,15.10148823,1927.0,1926.9,12.21789577]
[1617244628890,14.15988823,1927.0,1926.9,12.21789577]
[1617244630196,14.15988823,1927.0,1926.9,3.14278901]
[1617244630493,14.15988823,1927.0,1926.9,12.22295689]
[1617244631293,14.15988823,1927.0,1926.9,3.14278901]
[1617244632496,14.15988823,1927.0,1926.9,62.31958901]
[1617244632896,17.06683823,1927.0,1926.9,62.31958901]
[1617244633298,17.06683823,1927.0,1926.9,64.14222798]
[1617244633897,17.06683823,1927.0,1926.9,72.0177339]
[1617244634498,17.06683823,1927.0,1926.9,64.14222798]
[1617244634695,17.06683823,1927.0,1926.9,61.23527798]
[1617244634896,17.06683823,1927.0,1926.9,2.05847798]
[1617244635297,17.06683823,1927.0,1926.9,3.05847798]
[1617244635497,17.06683823,1927.0,1926.9,1.23583901]
[1617244638302,17.06683823,1927.0,1926.9,80.38433901]
[1617244638303,96.21533823,1927.0,1926.9,80.38433901]
[1617244638705,96.21533823,1927.0,1926.9,82.20731259]
[1617244639503,96.21533823,1927.0,1926.9,88.8635492]
[1617244640204,96.21533823,1927.0,1926.9,82.20731259]
[1617244640905,96.21533823,1927.0,1926.9,88.86324227]
[1617244643815,96.21533823,1927.0,1926.9,82.20731259]
[1617244644212,17.06683823,1927.0,1926.9,3.05881259]
[1617244644814,17.06683823,1927.0,1926.9,1.23583901]
[1617244646616,17.06683823,1927.0,1926.9,7.89200389]
[1617244647016,17.06683823,1927.0,1926.9,10.79895389]
[1617244648420,17.06683823,1927.0,1926.9,7.89200389]
[1617244648923,17.06683823,1927.0,1926.9,10.79895389]
[1617244649627,17.06683823,1927.0,1926.9,9.58379869]
[1617244650128,17.06683823,1927.0,1926.9,6.67684869]
[1617244650929,17.06683823,1927.0,1926.9,9.58379869]
[1617244652929,17.06683823,1927.0,1926.9,4.14278901]
[1617244653531,17.06683823,1927.0,1926.9,9.58382729]
[1617244656334,17.06683823,1927.0,1926.9,4.14278901]
[1617244656533,94.96803823,1927.0,1926.9,4.14278901]
[1617244657038,94.96803823,1927.0,1926.9,9.58381975]
[1617244661742,94.96803823,1927.0,1926.9,4.14278901]
[1617244662942,94.96803823,1927.0,1926.9,9.58166629]
[1617244665344,94.96803823,1927.0,1926.9,4.14278901]
[1617244667445,94.96803823,1927.0,1926.9,9.57963693]
[1617244668245,94.96803823,1927.0,1926.9,4.14278901]
[1617244668544,17.06683823,1927.0,1926.9,4.14278901]
[1617244668945,17.06683823,1927.0,1926.9,9.57954916]
[1617244669747,17.06683823,1927.0,1926.9,1.23583901]
[1617244670948,17.06683823,1927.0,1926.9,5.46455474]
[1617244672450,17.06683823,1927.0,1926.9,1.23583901]
[1617244673351,17.06683823,1927.0,1926.9,5.46374338]
[1617244675454,17.06683823,1927.0,1926.9,1.23583901]
[1617244676254,17.06683823,1927.0,1926.9,1.0]
[1617244676655,17.06683823,1927.0,1926.9,1.23487942]
[1617244681259,17.06683823,1927.0,1926.9,4.14182942]
[1617244681460,14.15988823,1927.0,1926.9,4.99122942]
[1617244683368,14.15988823,1927.0,1926.9,12.84257429]
[1617244685466,14.15988823,1927.0,1926.9,4.99122942]
[1617244685666,14.15988823,1927.0,1926.9,4.14182942]
[1617244686565,14.15988823,1927.0,1926.9,85.30502942]
[1617244687165,14.15988823,1927.0,1926.9,89.55772115]
[1617244688169,14.15988823,1927.0,1926.9,8.39452115]
[1617244688567,14.15988823,1927.0,1926.9,4.14182942]
[1617244690570,14.15988823,1927.0,1926.9,11.99983925]
[1617244691170,14.15988823,1927.0,1926.9,11.76495983]
[1617244691371,14.15988823,1927.0,1926.9,11.99929013]
[1617244692373,14.15988823,1927.0,1926.9,4.1412803]
[1617244700781,14.15988823,1927.0,1926.9,13.20714355]
[1617244702182,14.15988823,1927.0,1926.9,4.1412803]
[1617244709188,14.15988823,1927.0,1926.9,13.20082334]
[1617244709389,14.15988823,1927.0,1926.9,4.1412803]
[1617244710190,14.15988823,1927.0,1926.9,13.20089768]
[1617244710591,14.15988823,1927.0,1926.9,4.1412803]
[1617244711392,14.15988823,1927.0,1926.9,13.20099299]
[1617244712992,14.15988823,1927.0,1926.9,14.34339299]
[1617244713994,14.15988823,1927.0,1926.9,13.20099299]
[1617244714594,14.15988823,1927.0,1926.9,4.1412803]
[1617244714993,14.15988823,1927.0,1926.9,13.20121477]
[1617244718399,14.15988823,1927.0,1926.9,4.1412803]
[1617244718699,14.15988823,1927.0,1926.9,13.20073321]
[1617244720000,14.15988823,1927.0,1926.9,4.1412803]
[1617244720400,14.15988823,1927.0,1926.9,13.19663874]
[1617244721900,14.15988823,1927.0,1926.9,4.1412803]
[1617244725107,14.15988823,1927.0,1926.9,72.16325708]
[1617244725508,15.08608823,1927.0,1926.9,64.93044454]
[1617244725909,15.08608823,1927.0,1926.9,5.96324454]
[1617244726510,14.15988823,1927.0,1926.9,4.1412803]
[1617244726913,14.15988823,1927.0,1926.9,13.19658989]
[1617244727713,1.0,1928.4,1926.9,4.1412803]
[1617244728113,1.0,1928.4,1928.2,6.63761638]
[1617244728312,1.0,1928.4,1928.2,7.47501638]
[1617244728513,1.0,1928.4,1928.3,6.86967354]
[1617244728913,1.0,1928.4,1928.3,0.23234183]
[1617244729714,1.0,1928.4,1928.3,3.13929183]
[1617244730114,1.0,1928.4,1928.3,10.98228054]
[1617244730515,1.0,1928.4,1928.3,3.13929183]
[1617244731117,0.98,1928.4,1928.3,3.13929183]
[1617244731718,0.98,1928.4,1928.3,2.90695]
[1617244732719,0.98,1928.4,1928.3,7.11360647]
[1617244733319,0.98,1928.4,1928.3,7.34402253]
[1617244733520,0.98,1928.4,1928.3,8.54601538]
[1617244733719,0.98,1928.4,1928.3,3.13736606]
[1617244734519,0.98,1928.4,1928.3,2.90695]
[1617244734721,0.98,1928.4,1928.3,8.54603871]
[1617244734920,0.96,1928.4,1928.3,8.54603871]
[1617244735821,0.96,1928.4,1928.3,3.13745392]
[1617244736024,0.96,1928.4,1928.3,2.90695]
[1617244737723,0.96,1928.4,1928.3,7.11388626]
[1617244738127,0.96,1928.4,1928.3,2.90695]
[1617244738528,0.96,1928.4,1928.3,7.11384987]
[1617244738726,13.9739,1929.4,1928.4,69.9889]
[1617244739126,13.9739,1929.4,1928.5,1.82091373]
[1617244739930,13.9739,1929.4,1929.3,3.88235]
[1617244740126,13.9739,1929.4,1929.3,2.92235]
[1617244741127,13.9739,1929.4,1929.3,1.94695]
[1617244753044,14.8243,1929.4,1929.2,65.0299]
[1617244753241,14.8243,1929.4,1927.8,1.1]
[1617244753442,64.9154,1928.9,1927.8,1.1]
[1617244753843,64.9154,1928.9,1928.7,2.90695]
[1617244754043,1.2257,1928.9,1928.7,2.90695]
[1617244754843,82.0447,1929.0,1928.7,2.90695]
[1617244755847,82.0447,1929.0,1928.9,2.90695]
[1617244757249,14.8243,1929.4,1928.9,2.90695]
[1617244757850,2.90695,1929.0,1928.9,2.90695]
[1617244759150,4.13065,1929.0,1928.9,2.90695]
[1617244759950,4.13065,1929.0,1928.8,67.8843]
[1617244760451,2.90695,1929.0,1928.8,67.8843]
[1617244761951,2.90695,1929.0,1928.7,2.90695]
[1617244762351,59.4999,1928.9,1928.7,2.90695]
[1617244763953,2.90695,1928.8,1928.7,2.90695]
[1617244767153,2.90695,1928.8,1928.7,84.76735]
[1617244770059,2.90695,1929.0,1928.7,2.90695]
[1617244770458,87.23375,1929.0,1928.7,2.90695]
[1617244770960,2.90695,1929.0,1927.4,4.20829346]
[1617244771162,64.4931,1928.1,1927.3,4.20855593]
[1617244771360,65.4875,1928.1,1927.2,4.20882145]
[1617244771760,65.4875,1928.1,1927.0,4.20909007]
[1617244771960,65.4875,1928.1,1927.9,2.90695]
[1617244773561,0.9944,1928.1,1927.9,2.90695]
[1617244773966,2.90695,1928.0,1927.9,2.90695]
[1617244777767,2.89435,1928.0,1927.5,84.298]
[1617244777967,2.90695,1927.6,1927.4,2.90695]
[1617244778366,69.3858,1927.4,1926.9,1.0]
[1617244778973,3.76345,1927.6,1926.9,1.0]
[1617244779170,74.8641,1927.1,1926.9,1.0]
[1617244779569,75.878,1927.1,1926.9,1.0]
[1617244780069,75.878,1927.1,1927.0,2.90695]
[1617244780275,1.0139,1927.1,1927.0,2.90695]
[1617244780771,65.5972,1927.3,1927.0,2.90695]
[1617244782074,2.90695,1927.1,1927.0,2.90695]
[1617244782275,4.20575,1927.1,1927.0,2.90695]
[1617244783776,2.90695,1927.1,1927.0,2.90695]
[1617244787881,2.90695,1927.1,1927.0,81.91595]
[1617244815920,2.90695,1927.1,1927.0,2.90695]
[1617244820723,2.90695,1927.1,1927.0,0.23351292]
[1617244821122,65.1701,1927.0,1926.9,1.0]
[1617244821323,2.90695,1927.1,1926.9,1.0]
[1617244823326,69.9226,1927.0,1926.9,1.0]
[1617244825328,4.90695,1927.1,1926.9,1.0]
[1617244847347,34.90695,1927.1,1926.9,1.0]
[1617244850549,34.90695,1927.1,1925.5,61.9783]
[1617244850750,2.90695,1925.6,1925.5,61.9783]
[1617244850949,2.90695,1925.6,1924.6,14.9023]
[1617244851150,74.5348,1925.0,1924.6,14.9023]
[1617244851549,1.2106,1925.2,1924.6,14.9023]
[1617244852749,2.90695,1925.0,1924.6,14.9023]
[1617244853549,4.90695,1925.0,1924.6,14.9023]
[1617244856255,4.90695,1925.0,1924.9,1.0]
[1617244874870,4.90695,1925.0,1924.6,14.9023]
[1617244875271,2.90695,1924.7,1924.6,14.9023]
[1617244876172,1.90695,1924.7,1924.6,14.9023]
[1617244884493,2.95565,1924.7,1924.6,14.9023]
[1617244885496,4.95565,1924.7,1924.6,14.9023]
[1617244887392,81.65365,1924.7,1924.6,14.9023]
[1617244887592,4.95565,1924.7,1924.6,14.9023]
[1617244890394,3.90695,1924.7,1924.6,14.9023]
[1617244890595,1.90695,1924.7,1924.6,14.9023]
[1617244902108,2.94105,1924.7,1924.6,14.9023]
[1617244902907,1.90695,1924.7,1924.6,14.9023]
[1617244910023,3.00695,1924.7,1924.6,13.8761]
[1617244913521,3.00695,1924.7,1924.6,8.0054]
[1617244914926,3.00695,1924.7,1924.6,7.8911]
[1617244916127,3.00695,1924.7,1924.6,7.6865]
[1617244917228,5.00695,1924.7,1924.6,6.6455]
[1617244917829,35.00695,1924.7,1924.6,6.6455]
[1617244918029,35.00695,1924.7,1924.6,5.6159]
[1617244918230,35.00695,1924.7,1924.6,3.3153]
[1617244918429,35.00695,1924.7,1924.6,2.6947]
[1617244918830,35.00695,1924.7,1924.6,1.3995]
[1617244919031,35.00695,1924.7,1923.8,71.1482]
[1617244919631,3.96395,1923.9,1923.8,71.1482]
[1617244920234,3.96395,1923.9,1923.8,16.3953]
[1617244920433,35.96395,1923.9,1921.7,2.90695]
[1617244920635,75.2185,1921.9,1921.7,2.90695]
[1617244920834,75.2185,1921.9,1921.8,0.23785274]
[1617244921233,75.2185,1921.9,1921.7,2.90695]
[1617244921436,2.90695,1921.8,1921.5,2.90695]
[1617244922037,2.90695,1921.8,1921.6,0.23782723]
[1617244923638,2.90695,1921.8,1921.7,2.90695]
[1617244924237,2.90695,1921.8,1921.7,3.1447944]
[1617244924637,93.4746,1922.6,1921.7,3.1447944]
[1617244925338,93.4746,1922.6,1921.8,0.2378355]
[1617244925738,93.4746,1922.6,1922.0,2.90695]
[1617244927641,111.0134,1923.5,1922.0,2.90695]
[1617244927642,2.90695,1922.1,1922.0,2.90695]
[1617244927841,2.90695,1922.1,1921.6,13.9364]
[1617244928042,86.3342,1921.7,1921.6,13.9364]
[1617244928441,86.3342,1921.7,1921.6,14.1742547]
[1617244929645,89.24115,1921.7,1921.6,17.0812047]
[1617244930146,89.24115,1921.7,1921.6,16.84335]
[1617244936752,89.24115,1921.7,1921.6,13.9364]
[1617244945955,89.24115,1921.7,1921.6,16.84335]
[1617244948159,2.90695,1921.7,1921.6,16.84335]
[1617244949360,2.90695,1921.7,1921.6,13.9364]
[1617244961176,33.1,1924.1,1921.6,13.9364]
[1617244961378,72.984,1922.9,1921.9,74.0083]
[1617244962278,2.90695,1922.0,1921.9,74.0083]
[1617244962478,2.90695,1922.0,1921.9,1.0243]
[1617244964480,2.90695,1922.0,1921.6,13.9364]
[1617244964681,74.47955,1922.0,1921.6,13.9364]
[1617244965280,2.90695,1922.0,1921.6,13.9364]
[1617244966182,2.90695,1921.7,1921.6,16.84335]
[1617244975787,1.0433,1923.5,1921.6,16.84335]
[1617244975989,1.0433,1923.5,1921.6,17.91925]
[1617244976188,72.8233,1922.7,1921.9,2.90695]
[1617244977392,72.8233,1922.7,1922.0,1.13624613]
[1617244977894,72.8233,1922.7,1922.0,0.8964]
[1617244978296,2.90695,1922.2,1922.1,3.14676284]
[1617244978796,2.90695,1922.2,1922.1,2.90695]
[1617244979798,2.90695,1922.2,1922.0,0.8964]
[1617244981199,2.90695,1922.2,1922.1,0.23979981]
[1617244982402,2.90695,1922.2,1922.1,3.14674981]
[1617244983605,15.5015,1924.2,1922.1,3.14674981]
[1617244983806,1.1,1924.0,1922.1,3.14674981]
[1617244984005,1.1,1924.1,1922.1,3.14674981]
[1617244984206,1.1,1924.1,1922.2,0.23974018]
[1617244984405,14.4015,1924.2,1922.8,2.90695]
[1617244984608,14.4015,1924.2,1922.8,3.99255]
[1617244985512,14.4015,1924.2,1922.8,1.0856]
[1617244986409,2.90695,1922.9,1922.8,1.0856]
[1617244988409,2.90695,1922.9,1922.8,3.99255]
[1617244988809,14.4015,1924.2,1922.8,3.99255]
[1617244989409,14.4015,1924.2,1922.9,0.23899145]
[1617244989609,14.4015,1924.2,1922.9,15.03079145]
[1617244990211,14.4015,1924.2,1923.7,66.0678]
[1617244990412,2.90695,1923.8,1923.7,67.0983]
[1617244993715,2.90695,1923.8,1923.7,1.0305]
[1617244995618,2.90695,1923.8,1923.4,2.90695]
[1617244996417,2.90695,1923.5,1923.4,2.90695]
[1617244998517,14.4015,1924.2,1923.4,3.85625]
[1617245000218,14.4015,1924.2,1923.4,2.90695]
[1617245000418,14.4015,1924.2,1923.8,2.90695]
[1617245002326,2.90695,1923.9,1923.8,2.90695]
[1617245010135,2.90695,1923.9,1923.8,3.95485]
[1617245010336,2.90695,1924.1,1923.8,3.95485]
[1617245010538,2.90695,1924.1,1923.8,5.24705]
[1617245011539,2.90695,1924.1,1923.8,2.3401]
[1617245012438,2.90695,1923.9,1923.8,5.24705]
[1617245019146,2.90695,1923.9,1923.8,4.19915]
[1617245022455,2.90695,1923.9,1923.8,5.24985]
[1617245037275,69.885,1925.4,1923.8,2.3429]
[1617245038075,69.885,1925.4,1923.9,15.1504]
[1617245038877,2.90695,1924.0,1923.9,15.1504]
[1617245041378,2.90695,1924.0,1923.9,16.1842]
[1617245050386,2.90695,1924.0,1923.9,16.42354629]
[1617245050787,2.90695,1924.0,1923.9,16.1842]
[1617245051589,2.90695,1924.0,1923.9,16.42343918]
[1617245065807,2.90695,1924.0,1923.9,20.66511061]
[1617245067207,2.90695,1924.0,1923.9,19.63131061]
[1617245067406,2.90695,1924.0,1923.9,19.39207143]
[1617245067608,2.90695,1924.0,1923.9,15.1504]
[1617245068609,3.97175,1924.0,1923.9,15.1504]
[1617245069909,2.90695,1924.0,1923.9,15.1504]
[1617245077814,2.90695,1924.0,1923.9,21.83774991]
[1617245078115,2.90695,1924.0,1923.9,15.1504]
[1617245082517,2.90695,1924.0,1923.9,20.62219103]
[1617245083216,2.90695,1924.0,1923.9,15.1504]
[1617245084921,2.90695,1924.0,1923.9,20.62253887]
[1617245087426,2.90695,1924.0,1923.9,15.1504]
[1617245087822,2.90695,1924.0,1923.9,21.83828552]
[1617245088822,2.90695,1924.0,1923.9,15.1504]
[1617245089322,2.90695,1924.0,1923.9,20.62234759]
[1617245097129,2.90695,1924.0,1923.9,15.1504]
[1617245098227,2.90695,1924.0,1923.9,19.40659541]
[1617245100331,2.90695,1924.0,1923.9,15.1504]
[1617245100531,2.90695,1924.0,1923.9,75.1096]
[1617245100933,2.90695,1924.0,1923.9,76.93613234]
[1617245101732,2.90695,1924.0,1923.9,82.40806119]
[1617245102331,2.90695,1924.0,1923.9,22.44886119]
[1617245102840,2.90695,1924.0,1923.9,21.83757892]
[1617245103234,2.90695,1924.0,1923.9,15.1504]
[1617245103535,2.90695,1924.0,1923.9,18.05735]
[1617245103734,2.90695,1924.0,1923.9,18.29617071]
[1617245109341,60.7527,1924.9,1923.9,18.29617071]
[1617245109541,2.90695,1924.5,1924.3,2.90695]
[1617245109742,2.90695,1924.5,1924.3,9.46198425]
[1617245111042,2.90695,1924.5,1924.4,5.47106244]
[1617245111641,2.90695,1924.5,1924.3,10.67757103]
[1617245112343,2.90695,1924.5,1924.4,6.68628685]
[1617245112643,2.90695,1924.5,1924.4,5.46346638]
[1617245113643,73.8425,1925.7,1924.4,5.46346638]
[1617245113845,2.0,1926.1,1924.4,5.46346638]
[1617245114043,2.1411,1926.3,1924.6,4.2494186]
[1617245114244,1.0411,1926.3,1924.7,14.2797]
[1617245114444,1.0411,1926.3,1924.7,19.37464304]
[1617245114643,1.0411,1926.3,1925.1,4.24823253]
[1617245114843,1.0411,1926.3,1925.1,6.50443253]
[1617245115044,1.0411,1926.3,1925.2,4.24801903]
[1617245115643,1.0411,1926.3,1925.3,2.90695]
[1617245116845,1.0411,1926.3,1925.4,13.9275]
[1617245117244,1.0411,1926.3,1926.1,62.96]
[1617245117445,1.0411,1926.3,1926.1,63.9664]
[1617245117645,2.90695,1926.2,1926.1,63.9664]
[1617245118445,2.90695,1926.2,1926.1,1.0064]
[1617245120248,2.90695,1926.2,1925.7,2.90695]
[1617245120447,2.90695,1926.2,1925.7,7.15382237]
[1617245120648,2.90695,1926.2,1926.1,61.1965]
[1617245124051,2.90695,1926.2,1925.5,0.9028]
[1617245125651,1.0411,1926.3,1925.6,2.90695]
[1617245126051,1.0411,1926.3,1926.2,67.6807]
[1617245127652,3.94805,1926.3,1926.2,67.6807]
[1617245130956,3.94805,1926.3,1926.0,1.0325]
[1617245131756,2.90695,1926.1,1926.0,1.0325]
[1617245131960,2.90695,1926.1,1925.5,0.9028]
[1617245132156,2.90695,1926.1,1925.4,13.9275]
[1617245133759,2.90695,1925.5,1925.4,13.9275]
[1617245139165,2.85815,1925.5,1925.4,13.9275]
[1617245155887,2.79025,1925.5,1925.4,13.9275]
[1617245169804,2.71545,1925.5,1925.4,13.9275]
[1617245170005,2.90695,1925.7,1925.4,13.9275]
[1617245172009,2.90695,1925.7,1925.6,2.90695]
[1617245172211,2.90695,1925.7,1925.6,3.95305]
[1617245173313,2.90695,1925.7,1925.6,2.90695]
[1617245173513,2.90695,1925.7,1925.4,13.9275]
[1617245173712,4.21525,1925.7,1925.4,13.9275]
[1617245174015,2.90695,1925.5,1925.4,13.9275]
[1617245177216,2.90695,1925.5,1925.4,14.16522785]
[1617245177617,1.0,1928.3,1925.4,14.16522785]
[1617245177817,90.9952,1926.7,1925.4,15.03802785]
[1617245178217,90.9952,1926.7,1925.9,2.90695]
[1617245179018,90.9952,1926.7,1926.0,14.9789]
[1617245179218,16.2692,1927.5,1926.0,14.9789]
[1617245179718,85.6132,1927.0,1926.0,14.9789]
[1617245180119,2.90695,1926.1,1926.0,14.9789]
[1617245203143,2.90695,1926.1,1926.0,20.42828619]
[1617245203342,2.90695,1926.1,1926.0,20.66464359]
[1617245203542,2.83965,1926.1,1926.0,20.66464359]
[1617245203844,74.8798,1927.5,1926.0,20.66464359]
[1617245204246,74.8798,1927.5,1926.1,0.2360479]
[1617245204443,74.8798,1927.5,1926.6,4.22825]
[1617245205043,74.8798,1927.5,1926.7,14.1559]
[1617245206345,2.90695,1926.8,1926.7,14.1559]
[1617245216657,2.90695,1926.8,1926.7,15.1944]
[1617245217356,2.90695,1926.8,1926.7,14.1559]
[1617245224469,2.90695,1927.0,1926.7,14.1559]
[1617245225868,2.69795,1927.0,1926.7,14.1559]
[1617245226469,2.69795,1927.0,1926.9,2.90695]
[1617245229868,2.62925,1927.0,1926.9,2.90695]
[1617245230069,2.56125,1927.0,1926.9,2.90695]
[1617245230270,2.41325,1927.0,1926.9,2.90695]
[1617245232773,2.34625,1927.0,1926.9,2.90695]
[1617245234479,2.28215,1927.0,1926.9,2.90695]
[1617245241883,2.28215,1927.0,1926.9,3.97155]
[1617245251093,2.28215,1927.0,1926.9,2.90695]
[1617245254598,2.90695,1927.2,1926.9,2.90695]
[1617245254998,1.0217,1928.2,1926.9,2.90695]
[1617245255601,76.1879,1928.1,1926.9,2.90695]
[1617245256602,76.1879,1928.1,1927.6,2.90695]
[1617245258704,2.90695,1927.7,1927.6,2.90695]
[1617245259706,4.18815,1927.7,1926.7,14.1559]
[1617245260006,71.2545,1927.2,1926.8,71.2545]
[1617245260205,72.1556,1927.2,1926.8,71.2545]
[1617245260606,72.1556,1927.2,1927.1,2.90695]
[1617245262608,75.06255,1927.2,1927.1,2.90695]
[1617245269416,75.06255,1927.2,1926.7,14.1559]
[1617245269617,74.16145,1927.2,1926.7,14.1559]
[1617245269816,74.16145,1927.2,1927.1,69.6878]
[1617245273623,74.16145,1927.2,1926.7,17.06285]
[1617245274824,71.2545,1927.2,1926.9,2.90695]
[1617245275425,88.5233,1928.1,1926.9,2.90695]
[1617245276123,88.5233,1928.1,1926.7,14.1559]
[1617245276325,89.7279,1928.1,1926.7,14.1559]
[1617245276725,2.90695,1926.8,1926.7,14.1559]
[1617245288944,3.98005,1926.8,1926.7,14.1559]
[1617245293748,5.98005,1926.8,1926.7,14.1559]
[1617245308271,5.98005,1926.8,1925.4,4.23200812]
[1617245308876,5.98005,1926.8,1925.0,4.23226474]
[1617245309077,2.90695,1925.1,1924.9,5.44163717]
[1617245309478,2.90695,1925.1,1925.0,4.23245892]
[1617245309879,2.90695,1925.1,1924.9,5.44163717]
[1617245310078,2.90695,1925.1,1925.0,13.9856]
[1617245313282,2.90695,1925.1,1925.0,14.22232721]
[1617245315685,2.90695,1925.1,1925.0,13.9856]
[1617245318188,3.82415,1925.1,1925.0,13.9856]
[1617245319289,2.90695,1925.1,1925.0,13.9856]
[1617245323494,4.02425,1925.1,1925.0,13.9856]
[1617245337117,2.90695,1925.1,1925.0,13.9856]
[1617245355635,3.76245,1925.1,1925.0,13.9856]
[1617245360641,33.76245,1925.1,1925.0,12.9437]
[1617245361041,35.76245,1925.1,1925.0,12.9437]
[1617245361442,35.76245,1925.1,1925.0,5.9438]
[1617245361642,35.76245,1925.1,1922.7,2.584]
[1617245362042,17.2976,1925.0,1922.7,2.584]
[1617245362243,30.0,1924.9,1922.7,2.584]
[1617245362442,61.4139,1923.5,1922.7,2.584]
[1617245363541,2.90695,1922.8,1922.7,2.584]
[1617245366852,2.90695,1922.8,1922.3,2.90695]
[1617245367651,2.90695,1922.4,1922.3,2.90695]
[1617245368054,2.90695,1922.4,1922.3,3.14487871]
[1617245371958,2.90695,1922.4,1922.3,2.90695]
[1617245373757,2.90695,1922.4,1922.0,2.584]
[1617245373957,2.90695,1922.4,1921.7,14.8291]
[1617245375764,15.2608,1923.5,1922.2,2.90695]
[1617245375963,69.5212,1922.9,1922.4,69.5212]
[1617245377765,2.90695,1922.5,1922.4,69.5212]
[1617245379166,2.90695,1922.5,1922.2,2.90695]
[1617245379675,2.90695,1922.3,1922.2,2.90695]
[1617245391984,81.3569,1923.0,1922.2,2.90695]
[1617245392181,81.3569,1923.0,1922.2,6.72705]
[1617245393785,81.3569,1923.0,1922.9,2.90695]
[1617245393984,2.90695,1923.4,1922.9,3.96085]
[1617245395789,2.90695,1923.4,1923.3,2.90695]
[1617245395990,2.90695,1923.4,1923.3,4.11775]
[1617245397888,2.90695,1923.4,1922.9,1.0539]
[1617245397889,2.90695,1923.4,1923.1,2.90695]
[1617245399891,2.90695,1923.2,1923.1,2.90695]
[1617245414612,73.349,1923.8,1922.4,4.22377029]
[1617245415012,73.349,1923.8,1922.5,0.238252]
[1617245415311,73.349,1923.8,1922.5,4.46200919]
[1617245415813,73.349,1923.8,1922.6,1.23235259]
[1617245416214,73.349,1923.8,1923.2,2.90695]
[1617245416414,73.349,1923.8,1923.2,3.88745]
[1617245418116,2.90695,1923.3,1923.2,3.88745]
[1617245424323,2.90695,1923.3,1923.2,0.9805]
[1617245424522,2.90695,1923.3,1922.9,2.90695]
[1617245426423,2.90695,1923.0,1922.9,2.90695]
[1617245428027,2.90695,1923.0,1922.9,3.1459844]
[1617245428727,2.90695,1923.0,1922.9,2.90695]
[1617245430329,2.90695,1923.0,1922.7,2.90695]
[1617245431030,59.8439,1922.9,1922.8,59.8439]
[1617245431431,2.90695,1923.0,1922.4,4.23297497]
[1617245432030,2.90695,1923.0,1922.5,0.23939535]
[1617245432430,3.92455,1922.6,1922.3,15.149]
[1617245433633,3.92455,1922.6,1922.4,0.23895156]
[1617245434632,3.92455,1922.6,1922.3,15.149]
[1617245435832,2.90695,1922.6,1922.3,15.149]
[1617245436233,2.90695,1922.6,1922.4,0.23895419]
[1617245436934,2.90695,1922.6,1922.3,15.149]
[1617245437535,2.90695,1922.6,1922.4,0.23895019]
[1617245438137,81.09025,1922.6,1922.4,0.23895019]
[1617245438738,81.09025,1922.6,1922.4,4.4789106]
[1617245439541,81.09025,1922.6,1922.4,4.23996041]
[1617245444242,81.09025,1922.6,1922.3,19.38787891]
[1617245444442,2.90695,1922.4,1922.3,19.38787891]
[1617245445043,2.90695,1922.4,1922.3,19.62657452]
[1617245445343,2.90695,1922.4,1922.3,19.38787891]
[1617245446946,2.90695,1922.4,1922.3,4.23887891]
[1617245449450,2.90695,1922.4,1922.2,4.23901779]
[1617245450253,2.90695,1922.4,1922.3,5.45916859]
[1617245452052,2.90695,1922.4,1922.2,5.45918727]
[1617245452452,2.90695,1922.4,1922.3,5.45917634]
[1617245453155,2.90695,1922.4,1922.2,5.45915708]
[1617245453352,2.90695,1922.4,1922.3,5.45916]
[1617245453752,63.98495,1922.4,1922.3,66.53716]
[1617245454053,63.98495,1922.4,1922.3,68.3645825]
[1617245455152,2.90695,1922.4,1922.3,7.2865825]
[1617245455755,2.90695,1922.4,1922.3,5.45916]
[1617245456453,2.90695,1922.4,1921.7,10.79241574]
[1617245456454,2.90695,1922.4,1922.2,5.45719181]
[1617245459663,2.90695,1922.4,1922.3,5.69573792]
[1617245459863,2.90695,1922.4,1922.3,7.03523792]
[1617245460063,2.90695,1922.4,1922.3,1.57834199]
[1617245460465,100.8909,1923.2,1922.3,1.57834199]
[1617245460663,14.4169,1923.9,1922.3,8.24760679]
[1617245460863,14.4169,1923.9,1922.8,4.13465]
[1617245461464,14.4169,1923.9,1922.8,5.47154799]
[1617245461964,14.4169,1923.9,1922.8,1.2277]
[1617245462864,2.90695,1922.9,1922.8,1.2277]
[1617245463065,2.90695,1922.9,1922.5,7.14960843]